{"text_format":"1","workbook":"xlsx","n_sheets":2,"sheets":["Запит на закупівлю","Форма пропозиції (постачальник)"],"not_rendered":{"charts":0,"images":0,"macros":1,"external_links":0,"defined_names":1,"comments":1,"pivot_tables":0},"unopened":[],"bounds":{"document_bytes":16777216,"sheet_cells":100000,"rows_first":2000,"rows_last":500,"rows_between":2000,"halvings":0,"cell_chars":16384,"cell_head_chars":4096},"cells_cut":0,"cells_raw":0,"read":"whole","date_system":"1900"}

{"sheet":"Запит на закупівлю","index":0,"n_rows":42,"n_cols":8,"rows_kept":42,"cut":false,"hidden":false,"merged":[[30,0,30,5],[31,2,31,5],[39,0,39,5],[40,1,40,5],[41,1,41,5],[32,2,32,5],[33,2,33,5],[34,2,34,5],[35,2,35,5],[36,2,36,5],[37,2,37,5],[38,2,38,5],[24,1,24,4],[25,1,25,4],[26,1,26,4],[27,1,27,4],[28,1,28,4],[13,0,13,5],[19,0,19,5],[20,1,20,3],[21,1,21,3],[23,0,23,5],[9,0,9,2],[10,0,10,2],[11,0,11,2],[1,3,1,5],[3,3,3,5],[4,0,4,1],[7,3,7,5],[8,0,8,2],[8,3,8,5],[9,3,9,5],[10,3,10,5],[11,3,11,5]]}
[null,null,null,null,null,null,null,"Необхідно заповнити клітинки, що виділено жовтим"]
["Порядковий номер закупівлі згідно плану закупівель:",null,null,1]
[]
["\nДата формування запиту на закупівлю",null,null,"2024-10-28"]
["\n\nДата отримання запиту відділом закупівель"]
[]
[]
["Предмет закупівлі:",null,null,"Національна інфокампанія по підвищення обізнаності ЛГБТІК+ людей про їх психологічне здоров'я"]
["Донор:",null,null,"МБФ «Center for Disaster Philanthropy»"]
["Проект:",null,null,"Підтримка сталого відновлення та реабілітації, підвищення організаційної спроможності АЛЬЯНС.ГЛОБАЛ та ЛГБТІК+ спільнот під час та після війни в Україні"]
["Оплата ПДВ за проектом:",null,null,"Постачальник зобовязаний поставити товар без ПДВ"]
["Опис позицій до закупівлі товарів / технічне завдання для робіт та послуг",null,null,"Комплекс заходів з просування інтернет-сайту проекту https://www.mentalk.com.ua/ "]
[1]
["Опис товарів, послуг або робіт"]
["№ ","Назва товарів","Одиниця виміру ","кількість","Вимоги до товарів / технічні характеристики","Терміни поставки товару "]
[1,"Послуги з просування інтернет-сайту проєкту","послуга",1,"1.  Аналіз ніші/напрямку: соціальних мереж + рекомендації щодо підвищення конверсії\n 2. Аналіз конкурентів та їх реклами\n 3. Стратегія роботи під нашу організацію \n 4. Налаштування рекламного кабінету\n 5. Аналітика рекламних кампаній\n6. Запуск реклами","Початок надання послуг не пізніше 15 листопада 2024 року"]
["* Пропозиції на майданчику подавати за загальний об`єм. Некоректно подані пропозиції будуть дискваліфіковані."]
[]
[1]
["Критерії оцінки"]
[1,"Критерії оцінки",null,null,"Вага критерію","Підверджуюча документація"]
[1,"Вартість товарів",null,null,1,"Цінова пропозиція з підписом відповідальної особи та печаткою організації/ФОП (якщо є)."]
[1]
["Вимоги до постачальників товарів, надавачів послуг або виконавців робіт"]
[1,"Вимоги",null,null,null,"Підверджуюча документація"]
[1,"Наявність інтернет – сторінки (якщо є)",null,null,null,"має бути надана адреса інтернет сайту"]
[2,"Призначення одного менеджера по роботі із замовником",null,null,null,"має бути зазначено ПІБ менеджера"]
["3","Комерційні пропозиції приймаються без ПДВ. ",null,null,null,"Комерційна пропозиція"]
["4","Право на здійснення підприємницької діяльності",null,null,null,"Повний пакет документів, які підтверджують правовий статус постачальника"]
[1]
["Умови співпраці, загальні вимоги до товарів"]
[1,"Загальний термін договору:","Одноразова закупівля"]
[2,"Умови оплати:","Згідно умов договору"]
[3,"Розрахунок:","Безготівковий"]
[4,"Умови постачання товарів, надання послуг або виконання робіт:","Надавати послуги за медіа-планом погодженим з замовником"]
[5,"Можливість поставки товару частинами:","ні"]
[6,"Гарантія:","послуги мають бути здійсненими згідно технічного завдання"]
["7","Звільнення від ПДВ:","Послуги, роботи та товари мають надаватись або постачатись без ПДВ. "]
["8","Інші умови:","Якщо число потенційних постачальників менше ніж 3 (три), дана закупівля переоголошується. Організація залишає за собою право відмінити закупівлю без будь яких зобов’язань."]
["Документи, що мають бути надані разом із ціновою пропозицією, в т.ч. документи, що підтверджують відповідність вимогам"]
[1,"Підприємства (ТОВ, ВАТ, ЗАТ, Приватні підприємства тощо) копії свідоцтва про державну реєстрацію юридичної особи (для зареєстрованих до 07.05.2011 року, якщо їм не було видано виписку) або Виписка з Єдиного державного реєстру юридичних осіб та фізичних осіб-підприємців та ліцензії (якщо вид діяльності ліцензується). Для фізичних осіб-підприємців (ФОП) на єдиному податку – копія свідоцтва про державну реєстрацію (для зареєстрованих до 07.05.2011 року, якщо їм не було видану Виписку) або Виписка з Єдиного державного реєстру юридичних осіб, фізичних осіб-підприємців та громадських формувань та копію діючої ліцензії (якщо вид діяльності ліцензується); Для фізичних осіб- підприємців (ФОП) на загальній системі оподаткування – копії свідоцтва про державну реєстрацію (для зареєстрованих до 07.05.2011 року, якщо їм не було видано Виписку) або Виписка з Єдиного державного реєстру юридичних осіб, фізичних осіб-підприємців та громадських формувань та ліцензії (якщо вид діяльності ліцензується)."]
[2,"Всі копії будь-яких документів, що включаються в тендерну пропозицію, мають бути обов’язково завіреними підписом учасника, а якщо учасником є юридична особа, то печаткою та підписом уповноваженої особи. До тендерної пропозиції повинні додаватись документи, які посвідчують право такої уповноваженої особи підписувати тендерну пропозицію (наказ про призначення керівника або довіреність)."]

{"sheet":"Форма пропозиції (постачальник)","index":1,"n_rows":92,"n_cols":8,"rows_kept":92,"cut":false,"hidden":false,"merged":[[41,2,41,5],[42,2,42,5],[43,2,43,5],[44,2,44,5],[45,2,45,5],[34,1,34,4],[37,0,37,5],[38,2,38,5],[39,2,39,5],[40,2,40,5],[25,1,25,6],[30,1,30,4],[31,1,31,4],[32,1,32,4],[33,1,33,4],[21,1,21,2],[12,1,12,2],[12,3,12,7],[13,1,13,2],[13,3,13,7],[14,1,14,2],[14,3,14,7],[15,3,15,7],[16,3,16,7],[17,3,17,7],[18,3,18,7],[19,3,19,7],[20,3,20,7],[21,3,21,7],[16,1,16,2],[17,1,17,2],[18,1,18,2],[19,1,19,2],[20,1,20,2],[10,1,10,2],[10,3,10,7],[11,1,11,2],[11,3,11,7],[15,1,15,2],[7,1,7,2],[7,3,7,7],[8,1,8,2],[9,1,9,2],[9,3,9,7],[0,0,0,1],[1,2,1,3],[2,0,2,7],[4,0,4,7],[6,0,6,7],[73,0,73,7],[65,0,65,7],[66,0,66,7],[67,0,67,7],[68,0,68,7],[69,0,69,7],[70,0,70,7],[71,0,71,7],[61,0,61,7],[62,0,62,7],[63,0,63,7],[64,0,64,7],[72,0,72,7],[56,0,56,7],[57,0,57,7],[58,0,58,7],[59,0,59,7],[60,0,60,7],[48,0,48,5],[49,1,49,5],[50,1,50,5],[54,0,54,7],[55,0,55,7]]}
["Додаток 1 до Оголошення "]
["№",{"$f":"'Запит на закупівлю'!D2","v":1},"про проведення конкурсних торгів"]
[{"$f":"'Запит на закупівлю'!D8","v":"Національна інфокампанія по підвищення обізнаності ЛГБТІК+ людей про їх психологічне здоров'я"}]
[]
["Цінова пропозиція"]
[]
["Відомості про компанію учасника"]
[1,"Найменування Учасника:"]
[2,"Код ЄДРПОУ"]
[3,"Юридична адреса:"]
[4,"Фактична адреса:"]
[5,"Дата державної реєстрації:"]
[6,"ПІБ та посада керівника:"]
[7,"Номер телефону керівника:"]
[8,"Контактна особа з питань подання пропозиції:"]
[9,"Номер моб. телефону контактної особи:"]
[10,"Електронна пошта керівника:"]
[11,"Електронна пошта контактної особи:"]
[12,"Адреса веб-сайту:"]
[13,"Банківські реквізити:"]
[14,"Вид коду економічної діяльності за КВЕД, або вид діяльності згідно статуту, в рамках якого юридична особа має право здійснювати постачання товарів:"]
[15,"Група платника єдиного податку (лише для платників єдиного податку"]
[]
["№ ","Назва товарів, послуг або робіт","одиниця виміру ","кількість \n","вимоги до товарів полуг або робіт / технічні характеристики","Терміни надання послуг або робіт","вартість одиниці, грн (без ПДВ)","вартість всього, грн (без ПДВ)"]
[{"$f":"'Запит на закупівлю'!A16","v":1},{"$f":"'Запит на закупівлю'!B16","v":"Послуги з просування інтернет-сайту проєкту"},{"$f":"'Запит на закупівлю'!C16","v":"послуга"},{"$f":"'Запит на закупівлю'!D16","v":1},{"$f":"'Запит на закупівлю'!E16","v":"1.  Аналіз ніші/напрямку: соціальних мереж + рекомендації щодо підвищення конверсії\n 2. Аналіз конкурентів та їх реклами\n 3. Стратегія роботи під нашу організацію \n 4. Налаштування рекламного кабінету\n 5. Аналітика рекламних кампаній\n6. Запуск реклами"},{"$f":"'Запит на закупівлю'!F16","v":"Початок надання послуг не пізніше 15 листопада 2024 року"},null,{"$f":"D25*G25","v":0}]
[null,"ЗАГАЛЬНА СУММА (цю сумму вказуємо на майданчику)",null,null,null,null,null,{"$f":"SUM(H25:H25)","v":0}]
["* Пропозиції на майданчику подавати за загальний об`єм. Некоректно подані пропозиції будуть дискваліфіковані."]
[]
[]
[]
[1,"Вимоги до надавачів послуг або виконавців робіт*",null,null,null,"Підверджуюча документація","Відповідність вимогам \n(ТАК / НІ)"]
[{"$f":"'Запит на закупівлю'!A26","v":1},{"$f":"'Запит на закупівлю'!B26:E26","v":"Наявність інтернет – сторінки (якщо є)"},null,null,null,{"$f":"'Запит на закупівлю'!F26","v":"має бути надана адреса інтернет сайту"}]
[{"$f":"'Запит на закупівлю'!A27","v":2},{"$f":"'Запит на закупівлю'!B27:E27","v":"Призначення одного менеджера по роботі із замовником"},null,null,null,{"$f":"'Запит на закупівлю'!F27","v":"має бути зазначено ПІБ менеджера"}]
[{"$f":"'Запит на закупівлю'!A28","v":"3"},{"$f":"'Запит на закупівлю'!B28:E28","v":"Комерційні пропозиції приймаються без ПДВ. "},null,null,null,{"$f":"'Запит на закупівлю'!F28","v":"Комерційна пропозиція"}]
[{"$f":"'Запит на закупівлю'!A29","v":"4"},{"$f":"'Запит на закупівлю'!B29:E29","v":"Право на здійснення підприємницької діяльності"},null,null,null,{"$f":"'Запит на закупівлю'!F29","v":"Повний пакет документів, які підтверджують правовий статус постачальника"}]
["*Невідповідність зазначеним вимогам призводить до автоматичної дискваліфікації"]
[]
["Умови співпраці, загальні вимоги до робіт та послуг*",null,null,null,null,null,"Відповідність вимогам \n(ТАК / НІ)"]
[{"$f":"'Запит на закупівлю'!A32","v":1},{"$f":"'Запит на закупівлю'!B32","v":"Загальний термін договору:"},{"$f":"'Запит на закупівлю'!C32:F32","v":"Одноразова закупівля"}]
[{"$f":"'Запит на закупівлю'!A33","v":2},{"$f":"'Запит на закупівлю'!B33","v":"Умови оплати:"},{"$f":"'Запит на закупівлю'!C33:F33","v":"Згідно умов договору"}]
[{"$f":"'Запит на закупівлю'!A34","v":3},{"$f":"'Запит на закупівлю'!B34","v":"Розрахунок:"},{"$f":"'Запит на закупівлю'!C34:F34","v":"Безготівковий"}]
[{"$f":"'Запит на закупівлю'!A35","v":4},{"$f":"'Запит на закупівлю'!B35","v":"Умови постачання товарів, надання послуг або виконання робіт:"},{"$f":"'Запит на закупівлю'!C35:F35","v":"Надавати послуги за медіа-планом погодженим з замовником"}]
[{"$f":"'Запит на закупівлю'!A36","v":5},{"$f":"'Запит на закупівлю'!B36","v":"Можливість поставки товару частинами:"},{"$f":"'Запит на закупівлю'!C36:F36","v":"ні"}]
[{"$f":"'Запит на закупівлю'!A37","v":6},{"$f":"'Запит на закупівлю'!B37","v":"Гарантія:"},"послуги мають бути здійсненими згідно технічного завдання"]
[{"$f":"'Запит на закупівлю'!A38","v":"7"},{"$f":"'Запит на закупівлю'!B38","v":"Звільнення від ПДВ:"},{"$f":"'Запит на закупівлю'!C38:F38","v":"Послуги, роботи та товари мають надаватись або постачатись без ПДВ. "}]
[{"$f":"'Запит на закупівлю'!A39","v":"8"},{"$f":"'Запит на закупівлю'!B39","v":"Інші умови:"},{"$f":"'Запит на закупівлю'!C39:F39","v":"Якщо число потенційних постачальників менше ніж 3 (три), дана закупівля переоголошується. Організація залишає за собою право відмінити закупівлю без будь яких зобов’язань."}]
[]
[{"$f":"'Запит на закупівлю'!A40","v":"Документи, що мають бути надані разом із ціновою пропозицією, в т.ч. документи, що підтверджують відповідність вимогам"}]
["Документи, що мають бути надані разом із ціновою пропозицією, в т.ч. документи, що підтверджують відповідність вимогам*",null,null,null,null,null,"Документи додано до цінової пропозиції\n(ТАК / НІ)"]
[{"$f":"'Запит на закупівлю'!A41","v":1},{"$f":"'Запит на закупівлю'!B41:F41","v":"Підприємства (ТОВ, ВАТ, ЗАТ, Приватні підприємства тощо) копії свідоцтва про державну реєстрацію юридичної особи (для зареєстрованих до 07.05.2011 року, якщо їм не було видано виписку) або Виписка з Єдиного державного реєстру юридичних осіб та фізичних осіб-підприємців та ліцензії (якщо вид діяльності ліцензується). Для фізичних осіб-підприємців (ФОП) на єдиному податку – копія свідоцтва про державну реєстрацію (для зареєстрованих до 07.05.2011 року, якщо їм не було видану Виписку) або Виписка з Єдиного державного реєстру юридичних осіб, фізичних осіб-підприємців та громадських формувань та копію діючої ліцензії (якщо вид діяльності ліцензується); Для фізичних осіб- підприємців (ФОП) на загальній системі оподаткування – копії свідоцтва про державну реєстрацію (для зареєстрованих до 07.05.2011 року, якщо їм не було видано Виписку) або Виписка з Єдиного державного реєстру юридичних осіб, фізичних осіб-підприємців та громадських формувань та ліцензії (якщо вид діяльності ліцензується)."}]
[{"$f":"'Запит на закупівлю'!A42","v":2},{"$f":"'Запит на закупівлю'!B42:F42","v":"Всі копії будь-яких документів, що включаються в тендерну пропозицію, мають бути обов’язково завіреними підписом учасника, а якщо учасником є юридична особа, то печаткою та підписом уповноваженої особи. До тендерної пропозиції повинні додаватись документи, які посвідчують право такої уповноваженої особи підписувати тендерну пропозицію (наказ про призначення керівника або довіреність)."}]
["*Відсутність зазначених документів може призвезти до автоматичної дискваліфікації"]
[]
[]
["Своїм підписом підтверджуємо зобов’язання у випадку акцепту цієї пропозиції Організацією:"]
["1.  Не вносити жодних змін до цієї пропозиції та дотримуватись умов цієї пропозиції протягом періоду дії пропозиції, який становить – 30 календарних днів з дати подачі пропозиції. Ця цінова пропозиція може бути прийнята (акцептована) Організацією в будь-який момент до завершення періоду її дії; "]
["2. Підписати договір поставки/надання послуг або виконання робіт протягом 30-и днів з дати прийняття (акцепту) цієї цінової пропозиції з обов’язковим дотриманням положень вимог оголошення;"]
["3.  Поставити необхідний товар, виконати роботи або надати послуги у відповідності до умов цієї цінової пропозиції та проекту договору поставки (якщо є додатком до оголошення);"]
["4.  Забезпечити повноту та точність виконання цієї цінової пропозиції за формою, цінами/тарифами та у строки, вказані у цій ціновій пропозиції та оголошенні."]
[]
["Підписанням та поданням цієї цінової пропозиції учасник погоджується з наступним:"]
["1. Організація не зобов’язана приймати найкращу за ціною пропозицію чи будь-яку із отриманих пропозицій. До моменту підписання договору про закупівлю Організація не несе жодних зобов’язань по відношенню до учасників закупівлі або потенційних учасників закупівлі;"]
["2. Організація залишає за собою право відхилити цінові пропозиції всіх учасників процедури закупівлі;"]
["3. Організація  залишає за собою право застосувати процедуру редукціону;"]
["4. Дана цінова  пропозиція та оголошення є невід’ємними частинами відповідного договору на закупівлю товарів/послуг, що буде укладений Організацією з переможцем конкурсних торгів;"]
["5. Учасник ознайомлений з Кодексом поведінки постачальників http://network.org.ua/wp-content/uploads/2017/03/Kodeks-povedinki-postachalnikiv.pdf"]
["6. Участь у конкурсних торгахі пов’язаних осіб або ж змова учасників торгів забороняється. У разі виявлення таких фактів, результати торгів  буде відмінено або договір з відповідним постачальником буде достроково розірвано в односторонньому порядку з поверненням всього отриманого таким постачальником за договором та відшкодуванням збитків завданих Організації;"]
["7. Цим підтверджуємо(-ю) нашу(-мою) юридичну, фінансову та іншу спроможність виконати умови даної цінової пропозиції та оголошення, укласти договір на закупівлю товарів/послуг та правдивість всіх відомостей зазначених у цій ціновій пропозиції."]
[]
["Уповноважений підписати цінову пропозицію для та від імені [назва юридичної особи] згідно  [статуту або довіреності]:"]
[]
[]
[]
[" __________________________                                     ______________________________________________      "]
[null,"(підпис)",null,"(ПІБ)",null,"посада (для юридичних осіб)   "]
[]
[]
[]
[]
[]
[]
[]
[]
[]
[]
[]
[]
[]
[]
[]
["так"]
["ні"]